Cogmind - Beta 15 @@@ ROGUE MODE // 2025.07.01 @ 23:17:00 Player: Rudrot Result: Destroyed by FU-MZI(R) with Subdweller Shrapnel Launcher Performance ------------- Evolutions (0) 0 Regions Visited (2) 400 Robots Destroyed (11) 55 Value Destroyed (385) 385 Prototype IDs (0) 0 Alien Tech Used (0) 0 Bonus (0) 0 TOTAL SCORE: 840 Bonus ------- None Cogmind --------- Core Integrity 0/250 Matter 85/300 Energy 250/250 System Corruption 0% Temperature Cool (0) Movement Rolling (100) Location -10/Subcaves Parts ------- > --- POWER (1) -------- Ion Engine > --- PROPULSION (2) --- Compact Wheel Compact Wheel > --- UTILITY (2) ------ Small Storage Unit Power Shielding > --- WEAPON (2) ------- Mini Grenade Launcher > --- INVENTORY (8) ---- Subdweller Power Source Subdweller Optics Sensor Array Signal Interpreter Assault Rifle Mini Grenade Launcher Peak State ------------ > --- POWER ------------ Ion Engine > --- PROPULSION ------- Compact Wheel Compact Wheel > --- UTILITY ---------- Small Storage Unit Power Shielding > --- WEAPON ----------- Assault Rifle Mini Grenade Launcher > --- INVENTORY -------- Ion Engine Compact Wheel Sensor Array Signal Interpreter Assault Rifle Grenade Launcher Mini Grenade Launcher Mini Grenade Launcher [Rating: 9] Favorites ----------- Power Ion Engine Engine Ion Engine Propulsion Compact Wheel Wheel Compact Wheel Utility Small Storage Unit Storage Small Storage Unit Protection Power Shielding Weapon Assault Rifle Energy Gun EM Pulse Gun Ballistic Gun Assault Rifle Launcher Mini Grenade Launcher Build | -11 -10 -10 ------- Run | Yrd Mat Sub Slots Evolved . | . . . Power . | . . . Propulsion . | . . . Utility . | . . . Weapon . | . . . Parts Attached 13 | 6 2 5 Power 2 | 1 . 1 Engine 2 | 1 . 1 Core . | . . . Reactor . | . . . Propulsion 3 | 2 . 1 Treads . | . . . Leg . | . . . Wheel 3 | 2 . 1 Hover . | . . . Flight . | . . . Utility 2 | 1 1 . Device . | . . . Storage 1 | 1 . . Processor . | . . . Hackware . | . . . Protection 1 | . 1 . Artifact . | . . . Weapon 6 | 2 1 3 Energy Gun 1 | 1 . . Energy Cannon . | . . . Ballistic Gun 3 | 1 . 2 Ballistic Cannon . | . . . Launcher 2 | . 1 1 Special Weapon . | . . . Impact Weapon . | . . . Slashing Weapon . | . . . Piercing Weapon . | . . . Special Melee Weapon . | . . . Unidentified Prototypes . | . . . Parts Lost 3 | . . 3 Power . | . . . Propulsion . | . . . Utility . | . . . Weapon 3 | . . 3 Highest Loss Streak 2 | . . 2 To Critical Strikes . | . . . Average Backups 6 | . 6 7 Power . | . 1 1 Propulsion . | . . . Utility 1 | . 1 2 Weapon 2 | . 2 3 Tool/Special . | . . . Unused Backups 7 | . 2 5 Power 1 | . . 1 Propulsion . | . . . Utility 3 | . . 3 Weapon 3 | . 2 1 Tool/Special . | . . . Average Slot Usage (%) 96 | . 95 99 Engine 14 | . 14 14 Wheel 27 | . 28 27 Storage 14 | . 14 14 Protection 10 | . 9 14 Energy Gun 1 | . 1 . Ballistic Gun 15 | . 14 19 Launcher 11 | . 12 8 Peak Build Rating 9 | 6 9 9 Average Rating 7 | 4 7 8 On Entrance 5 | . 6 9 Naked Turns . | . . . Heaviest Build 15 | 14 14 15 Greatest Support 32 | 32 32 32 Greatest Overweight (x) . | . . . Average Overweight (x) . | . . . Largest Inventory Capacity 8 | 8 8 8 Average Capacity 7 | 7 8 8 Most Carried 8 | 1 8 8 Average Carried 6 | . 6 7 Final Capacity 8 | 8 8 8 Final Carried 8 | 1 8 6 Class Distribution -------------------- 100% | Mutant Dominant Class ---------------- Mutant | -10/Materials Mutant | -10/Subcaves Resources | -11 -10 -10 ----------- Run | Yrd Mat Sub Matter Collected 447 | 260 39 148 Remotely . | . . . Salvage Created 350 | . 172 178 Parts 17 | . 10 7 Haulers Intercepted 1 | . 1 . Recyclers Shooed 1 | . 1 . Parts Field Recycled . | . . . Retrieved Matter . | . . . Parts Self-Destructed 7 | . . 7 Prevented . | . . . Kills | -11 -10 -10 ------- Run | Yrd Mat Sub Combat Hostiles Destroyed 9 | . 4 5 Guns 3 | . 1 2 AOE 6 | . 3 3 Classes Destroyed 4 | . 3 1 Worker 1 | . 1 . Hauler 1 | . 1 . Grunt 4 | . 4 . Subdweller 5 | . . 5 Best Kill Streak 3 | . 3 2 Combat Bots Only 2 | . 2 2 Max Kills in Single Turn 2 | . 2 1 Gunslinging . | . . . Exploded 1 | . 1 1 Melee . | . . . Uniques/NPCs Destroyed . | . . . Combat | -11 -10 -10 -------- Run | Yrd Mat Sub Hostile Shots Fired 43 | . 11 32 Missed 18 | . 6 12 Hits 25 | . 5 20 Projectile 25 | . 5 20 AOE 5 | . . 5 Critical Strikes 3 | . 1 2 Actively Blocked 1 | . . 1 Damage Taken 690 | . 83 607 Core 258 | . 16 242 Absorbed by Shields . | . . . Redirected to Shielding 13 | . . 13 Core Remaining (%) 100 | 100 . . Volleys Fired 47 | . 29 18 Largest 2 | . 2 2 Hottest 50 | . 50 50 Shots Fired 68 | . 37 31 Gun 49 | . 28 21 Cannon . | . . . Launcher 19 | . 9 10 Special . | . . . Kinetic 49 | . 28 21 Thermal . | . . . Explosive 19 | . 9 10 Electromagnetic . | . . . Robot Hit Streak 15 | . 8 15 Robot Miss Streak 4 | . 4 2 Penetration Max . | . . . Secondary Targets . | . . . Shots Hit Robots 47 | . 23 24 Core Hits 22 | . 11 11 Critical Kills . | . . . Critical Parts Destroyed . | . . . Critical Strikes . | . . . Melee Attacks . | . . . Impact . | . . . Slashing . | . . . Piercing . | . . . Sneak Attacks . | . . . Combat Hostiles . | . . . Follow-up Attacks . | . . . Damage Inflicted 1364 | . 579 785 Guns 427 | . 222 205 Cannons . | . . . Explosions 937 | . 357 580 Melee . | . . . Ramming . | . . . Kinetic 427 | . 222 205 Thermal . | . . . Explosive 937 | . 357 580 Electromagnetic . | . . . Impact . | . . . Slashing . | . . . Piercing . | . . . Highest Corruption . | . . . Average Corruption . | . . . Corruption Purged . | . . . Corruption Blocked . | . . . Overload Shots . | . . . Overflow Damage 3 | . 3 . Projectiles . | . . . Explosions 3 | . 3 . Melee . | . . . Knockbacks . | . . . Impact . | . . . Kinetic . | . . . Secondary . | . . . Self-Inflicted Damage 5 | . . 5 Shots 1 | . . 1 Rammed . | . . . Targets Rammed . | . . . Kicked . | . . . Crushed . | . . . Highest Temperature 8 | . 8 . Average Temperature 4 | . 4 . Received Heat Transfer 66 | . 54 12 Siege Activations . | . . . Martial Activations . | . . . Shielding Activations . | . . . Robots Disrupted . | . . . Combat Hostiles . | . . . Robots Corrupted . | . . . Combat Hostiles . | . . . Parts Fried . | . . . Impact Corruptions . | . . . Robots Melted . | . . . Combat Hostiles . | . . . Parts Melted . | . . . Heat Transferred . | . . . Parts Sabotaged . | . . . Parts Stolen . | . . . Parts Stripped . | . . . Power Chain Reactions . | . . . Alert | -11 -10 -10 ------- Run | Yrd Mat Sub Maximum Alert Level . | . . . Low Security (%) 100 | 100 100 . Level 1 . | . . . Level 2 . | . . . Level 3 . | . . . Level 4 . | . . . Level 5 . | . . . High Security . | . . . Max Security . | . . . Peak Influence 82 | . 82 . Initial . | . . . Average 11 | . 12 . Influence Increases 179 | . 179 . Destroy 0b10 Robot/C 80 | . 80 . Destroy 0b10 Robot/NC 10 | . 10 . Destroy Leader 22 | . 22 . Successful Hack 4 | . 4 . Disable Machine 30 | . 30 . Destroy Structure 33 | . 33 . Influence Decreases 179 | . 179 . Time Decay 179 | . 179 . Squads Dispatched 1 | . 1 . Investigation . | . . . Extermination . | . . . Reinforcement 1 | . 1 . Assault . | . . . Garrison . | . . . Intercept . | . . . Searches Triggered . | . . . Construction Impeded . | . . . Haulers Reinforced . | . . . Active Scanning Responses . | . . . Cargo Convoy Interrupts . | . . . Stealth | -11 -10 -10 --------- Run | Yrd Mat Sub Distress Signals 1 | . 1 . Communications Jammed . | . . . Distress Signals . | . . . Times Spotted 17 | . 11 6 Peak Tracking Total 4 | . 4 2 Tactical Retreats 1 | . 1 . Traps | -11 -10 -10 ------- Run | Yrd Mat Sub Traps Triggered . | . . . Indirectly . | . . . Trap Hack Attempts . | . . . Triggered . | . . . Disarmed . | . . . Reprogrammed . | . . . Reused . | . . . Traps Extracted . | . . . Installed . | . . . Triggered . | . . . Machines | -11 -10 -10 ---------- Run | Yrd Mat Sub Machines Disabled 2 | . 2 . Max in Single Turn 1 | . 1 . Machines Repaired . | . . . Machines Dismantled . | . . . Machines Sabotaged . | . . . Overloaded Fab Kills . | . . . Hacking | -11 -10 -10 --------- Run | Yrd Mat Sub Machines Accessed 4 | . 4 . Terminals 3 | . 3 . Fabricators . | . . . Repair Stations . | . . . Recycling Units 1 | . 1 . Scanalyzers . | . . . Garrison Access . | . . . Total Hacks 7 | . 7 . Successful 4 | . 4 . Failed 3 | . 3 . Catastrophic 1 | . 1 . Database Lockouts . | . . . Manual . | . . . Terminals 6 | . 6 . Fabricators . | . . . Repair Stations . | . . . Recycling Units 1 | . 1 . Scanalyzers . | . . . Garrison Access . | . . . Terminal Hacks 3 | . 3 . Record 1 | . 1 . Robot Analysis 1 | . 1 . Alert Level 1 | . 1 . Fabricator Hacks . | . . . Repair Station Hacks . | . . . Recycling Unit Hacks 1 | . 1 . Retrieve Components 1 | . 1 . Scanalyzer . | . . . Garrison Access Hacks . | . . . Unauthorized Hacks . | . . . Terminals . | . . . Fabricators . | . . . Repair Stations . | . . . Recycling Units . | . . . Scanalyzers . | . . . Garrison Access . | . . . Data Cores Recovered . | . . . Used . | . . . Hacking Detections 1 | . 1 . Full Trace Events . | . . . Feedback Events . | . . . Feedback Blocked . | . . . Robot Schematics Acquired . | . . . Robots Built . | . . . Authchips . | . . . Time . | . . . Total Robot Build Rating . | . . . Part Schematics Acquired . | . . . Parts Built . | . . . Authchips . | . . . Time . | . . . Total Part Build Rating . | . . . Parts Repaired . | . . . Time . | . . . Parts Recycled . | . . . Recycled Matter . | . . . Retrieved Matter . | . . . Retrieved Components 2 | . 2 . Parts Scanalyzed . | . . . Part Schematics Acquired . | . . . Parts Damaged . | . . . Bothacking | -11 -10 -10 ------------ Run | Yrd Mat Sub Used RIF Installer . | . . . Robots Hacked . | . . . Non-combat . | . . . Combat . | . . . Robot Hacks Applied . | . . . Relay Couplers Released . | . . . Fabnet Peak Effective % . | . . . Robots Rewired . | . . . Allies Hacked . | . . . Hacks Repelled . | . . . Allies | -11 -10 -10 -------- Run | Yrd Mat Sub Total Allies . | . . . Largest Group . | . . . Highest-Rated Group . | . . . Highest-Rated Ally . | . . . Total Orders . | . . . Ally Attacks . | . . . Total Damage . | . . . Kills . | . . . Allies Corrupted . | . . . Allies Melted . | . . . Intel | -11 -10 -10 ------- Run | Yrd Mat Sub Active Infowar (turns) . | . . . Robot Analysis Total 1 | . 1 . Derelict Logs Recovered 1 | . . 1 Drone Launches . | . . . Drone Recoveries . | . . . Exploration | -11 -10 -10 ------------- Run | Yrd Mat Sub Turns Passed 1076 | 54 794 228 Spaces Moved 888 | 45 675 168 Core 1 | 1 . . Treads . | . . . Legs . | . . . Wheels 887 | 44 675 168 Hover . | . . . Flight . | . . . Fastest Speed 50 | 50 100 100 Average Speed 99 | 98 100 100 Slowest Speed 100 | 100 100 100 Overloaded Moves . | . . . Propulsion Burnouts . | . . . Robots Hopped . | . . . Potential Cave-ins . | . . . Cave-ins Triggered . | . . . Exploration Rate (%) 28 | 3 69 12 Regions Visited 2 Branch Regions 1 Pre-discovered Areas 1 | . . 1 Known Exits Taken . | . . . Unknown Exits Taken 2 | 1 1 . Scrap Searched . | . . . Spaces Dug . | . . . Terrain Destroyed 94 | . 33 61 Melee . | . . . Projectile . | . . . AOE 94 | . 33 61 Terrain Rammed . | . . . Walls Destroyed . | . . . Machines Disabled . | . . . Actions | -11 -10 -10 --------- Run | Yrd Mat Sub Total 1007 | 51 758 198 Wait 39 | . 39 . Move 886 | 44 674 168 Hop . | . . . Pick Up 14 | 1 10 3 Fast Attach 7 | 6 1 . Attach 6 | . 1 5 Detach 1 | . 1 . Swap 1 | . . 1 Drop 6 | . 3 3 Fire 47 | . 29 18 Melee . | . . . Ram . | . . . Kick . | . . . Crush . | . . . Escape Stasis . | . . . Rewire . | . . . Trap . | . . . Miscellaneous . | . . . Route ------- -11/Scrapyard -10/Materials (discovered 4 exits: [*Mat x2] / [*Min] / [*Sub]) -10/Subcaves History --------- Turn | Location | Event 29 | -11/Scrapyard | Discovered new exit (range 15) 55 | -11/Scrapyard | Entered Materials 204 | -10/Materials | Discovered new exit (range 6) 274 | -10/Materials | Discovered new exit (range 14) 313 | -10/Materials | Build established: Mutant 419 | -10/Materials | Discovered new exit (range 16) 659 | -10/Materials | Discovered new exit (range 8) 755 | -10/Materials | Derelicts attacked the area 849 | -10/Materials | Entered Subcaves 850 | -10/Subcaves | Approached by a straggling Scientist 1048 | -10/Subcaves | Shifting Twisted Machinery released Barrage Gun 1048 | -10/Subcaves | Shifting Twisted Machinery released Sub. Monowheel 1069 | -10/Subcaves | Core integrity fell below 50% 1071 | -10/Subcaves | Core integrity fell below 20% 1077 | -10/Subcaves | Destroyed by FU-MZI(R) with Subdweller Shrapnel Launcher Last Messages --------------- R1-GW5(c): "I think it's somewhere east of here" 00978_ Assault Rifle destroyed. 00987_ 8D-ODO(R) destroyed. 00990_ 4P-EF0(R) destroyed. 00995_ The unstable cave ceiling collapses. 00999_ Acquired 6 matter. 01001_ Acquired 38 matter. R1-GW5(c): "I think it's somewhere east of here" Barrage Gun falls loose from the Twisted Machinery. Sub. Monowheel falls loose from the Twisted Machinery. R1-GW5(c): "I think it's somewhere east of here" 01062_ FU-MZI(R): "ARGHSUB!" 01064_ Destroyed Sub. Power Source. 01065_ The unstable cave ceiling collapses. 01067_ RL-N6E(R) destroyed. 01068_ The unstable cave ceiling collapses. 01070_ Mni. Grenade Launcher destroyed. 01073_ Assault Rifle destroyed. Map ----- +----------------------------------------------------+ | ?????????????????????????????????????????????????? | | ?????????????????????????????????????????????????? | | ?????????????????????????????????????????????????? | | ?????????????????????????????????????????????????? | | ?????????????????????????????????????????????????? | | ?????????????????????????????????????????????????? | | ?????????????????????????????????????????????????? | | ?????????????????????????????????????????????????? | | ?????????????????????????????????????????????????? | | ?????????????????????????????????????????????????? | | ?????????????????????????????????????????????????? | | ????????????????????????#####????????????????????? | | ???????????????????????? ##???????????????????? | | ???????????????????????? ##? #??????????????? | | ???????????????????????? ?? ??????????????? | | ????????????????#?????? ? ???????????????? | | ?????????????????!?? ? ## ????????????????? | | ?????????????????"! "" ;;;##???????????????? | | ?????????????????#" """ ;;;;#????#??????????? | | ????????????????##" """"" ;#??? ???????????? | | ????????????????#"" """= ;##? ????????????? | | ????????????????#" [ ;# #????????????? | | ?????????????????# # ###???????????? | | ?????????????????## ????????????? | | ?????????????????# #????????????????? | | ?????????????????# @ #????????????????? | | ????????????"" #????????????????? | | ????????# #"" ##???????????????? | | ????????"" "" "" R "#???????????????? | | ###?????#"#"???"" ""#???????????????? | | # #?????#""#??" " ## """#???????????????? | | # #?????#" ??? # # "####???????????????? | | ###???# #????## # ###??????????????????? | | # ##### ###???####### ##????????????????????? | | ## " #####?### ##????????????????????? | | # """#"#"#### #????????????????????? | | " #???????????????????? | | ] ## ### ## #### # #???????????????????? | | & ####?######??## ## #??????????????????? | | ! #?????????????# #? #?????????????????? | | ##?????????????####?## ##?????????????????? | | ### #???????????????????? #??????????????????? | | # #? ##??????????????????? ??????????????????? | | #???????????????????? #?????????????????? | | ## # #???????????????????? #?????????????????? | | ??### #???????????????????????????????????????? | | ??### ##???????????????????????????????????????? | | ### #????????????????????????????????????????? | | # #????????????????????????????????????????? | | #????????????????????????????????????????? | +----------------------------------------------------+ Best States ------------- Heat Dissipation 25 Energy Generation 10 Energy Capacity 250 Matter Stores 300 Matter Capacity 300 Sight Range 16 Terrain Scan Density 10 Power Shielding 33 Evasion (%) 40 Item Schematics ----------------- None Robot Schematics ------------------ None Fabricated ------------ Nothing Repaired ---------- Nothing Alien Tech Used ----------------- None Achievements -------------- None Challenges ------------ None Game ------ Seed DeliveryPointMesh Manual? 0 Play Time 00:15:19 Cumulative 25.3 hours Start 2025.07.01 @ 22:49:27 End 2025.07.01 @ 23:17:00 Sessions 1 Manual Loads 0 Difficulty Rogue Special Mode None Game No. 20 Rogue 20 Adventurer 0 Explorer 0 Win Type - Total 0 Types 0/0/0/0/0/0/0/0/0/0 Lore% 15 Gallery% 12 Achievement% 16 Wizard Run 0 Options --------- Layout 1 ASCII 0 Keyboard 1 Movement Numpad Keybinds 0 Fullscreen 2 Font 24/Cog Map View 50x35 Zoom Use 0% Tactical HUD 1 Map Filters NONE Filters NONE Steam 1 RUN: 6f4647e6-1bf0-441a-a319-091bc4cce582